[Event "*** Titled Tuesday Blitz"]
[Site "Chess.com"]
[Date "2018.05.01"]
[Round "2"]
[White "Caisachess"]
[Black "alturas_pacificas"]
[Result "0-1"]
[WhiteElo "2169"]
[BlackElo "2147"]
[TimeControl "180+2"]
[EndTime "13:18:17 PDT"]
[Termination "alturas_pacificas won by resignation"]

1. e4 {[%clk 0:03:01.9]} 1... e5 {[%clk 0:02:55.5]} 2. Nf3 {[%clk 0:03:02.3]}
2... Nf6 {[%clk 0:02:55.6]} 3. Nc3 {[%clk 0:03:00.3]} 3... Nc6 {[%clk 0:02:56]}
4. Bb5 {[%clk 0:02:56]} 4... Bc5 {[%clk 0:02:54]} 5. O-O {[%clk 0:02:54.6]} 5...
d6 {[%clk 0:02:53.8]} 6. h3 {[%clk 0:02:54]} 6... h6 {[%clk 0:02:53.9]} 7. d3
{[%clk 0:02:55]} 7... g5 {[%clk 0:02:51.6]} 8. Nxg5 {[%clk 0:02:44.1]} 8... hxg5
{[%clk 0:02:49.3]} 9. Bxg5 {[%clk 0:02:45.6]} 9... Rg8 {[%clk 0:02:47.5]} 10. h4
{[%clk 0:02:43.2]} 10... a6 {[%clk 0:02:25.8]} 11. Nd5 {[%clk 0:02:38.3]} 11...
Rxg5 {[%clk 0:01:32.3]} 12. hxg5 {[%clk 0:02:37.2]} 12... Nxd5 {[%clk
0:01:31.7]} 13. Bxc6+ {[%clk 0:02:36.6]} 13... bxc6 {[%clk 0:01:32.1]} 14. exd5
{[%clk 0:02:37.8]} 14... Qxg5 {[%clk 0:01:28.2]} 15. dxc6 {[%clk 0:02:30.4]}
15... Bg4 {[%clk 0:01:23.5]} 16. Qc1 {[%clk 0:02:28.5]} 16... Qh5 {[%clk
0:01:24.5]} 17. c3 {[%clk 0:01:51.1]} 17... O-O-O {[%clk 0:01:21.1]} 18. d4
{[%clk 0:01:48.1]} 18... Rh8 {[%clk 0:01:22.3]} 19. f3 {[%clk 0:01:48.1]} 19...
exd4 {[%clk 0:01:13.4]} 20. Kf2 {[%clk 0:01:37.9]} 20... dxc3+ {[%clk
0:01:02.1]} 21. Ke2 {[%clk 0:01:32.4]} 21... Re8+ {[%clk 0:01:01.9]} 22. Kd1
{[%clk 0:01:33.6]} 22... Qd5+ {[%clk 0:00:56.8]} 0-1

[Event "*** Titled Tuesday Blitz"]
[Site "Chess.com"]
[Date "2018.05.01"]
[Round "2"]
[White "josiwales"]
[Black "saraswathii"]
[Result "0-1"]
[WhiteElo "2392"]
[BlackElo "2273"]
[TimeControl "180+2"]
[EndTime "13:18:21 PDT"]
[Termination "saraswathii won by resignation"]

1. e4 {[%clk 0:03:01]} 1... c5 {[%clk 0:03:00.8]} 2. Nc3 {[%clk 0:03:00.9]} 2...
e6 {[%clk 0:03:01]} 3. g3 {[%clk 0:03:02.8]} 3... d5 {[%clk 0:03:01.3]} 4. Bg2
{[%clk 0:03:04.7]} 4... d4 {[%clk 0:03:02.1]} 5. Nce2 {[%clk 0:03:05.5]} 5...
Nc6 {[%clk 0:03:03.2]} 6. d3 {[%clk 0:03:06.9]} 6... Nf6 {[%clk 0:03:03.7]} 7.
f4 {[%clk 0:03:08.1]} 7... Be7 {[%clk 0:03:01.7]} 8. Nf3 {[%clk 0:03:08.3]} 8...
O-O {[%clk 0:03:02.7]} 9. h3 {[%clk 0:03:08.9]} 9... b5 {[%clk 0:03:01.7]} 10.
g4 {[%clk 0:03:07.9]} 10... Bb7 {[%clk 0:03:02.7]} 11. O-O {[%clk 0:03:09.1]}
11... Qb6 {[%clk 0:02:59.9]} 12. f5 {[%clk 0:03:08.9]} 12... exf5 {[%clk
0:02:59.9]} 13. gxf5 {[%clk 0:03:05.4]} 13... c4 {[%clk 0:02:59.7]} 14. Kh1
{[%clk 0:03:04.9]} 14... Rac8 {[%clk 0:02:55.5]} 15. Rg1 {[%clk 0:03:00]} 15...
Rfd8 {[%clk 0:02:55.8]} 16. Bg5 {[%clk 0:02:54.5]} 16... Nb4 {[%clk 0:02:53.5]}
17. e5 {[%clk 0:02:49.8]} 17... Nfd5 {[%clk 0:02:48.8]} 18. f6 {[%clk
0:02:43.9]} 18... Bf8 {[%clk 0:02:39.6]} 19. Nfxd4 {[%clk 0:02:40]} 19... cxd3
{[%clk 0:02:35.9]} 20. cxd3 {[%clk 0:02:34]} 20... Bc5 {[%clk 0:02:36.3]} 21.
Nf5 {[%clk 0:02:09.7]} 21... Bxg1 {[%clk 0:02:32.1]} 22. Nxg1 {[%clk 0:02:09.6]}
22... Qf2 {[%clk 0:02:27.8]} 23. Qg4 {[%clk 0:02:02.8]} 23... h5 {[%clk
0:02:20.4]} 24. Qe4 {[%clk 0:01:03.4]} 24... Nxd3 {[%clk 0:01:57.9]} 25. Rf1
{[%clk 0:00:59.4]} 25... Qxf1 {[%clk 0:01:56.3]} 0-1

[Event "*** Titled Tuesday Blitz"]
[Site "Chess.com"]
[Date "2018.05.01"]
[Round "2"]
[White "robbykevlishvili"]
[Black "vugarrasulov"]
[Result "1-0"]
[WhiteElo "2553"]
[BlackElo "2728"]
[TimeControl "180+2"]
[EndTime "13:18:29 PDT"]
[Termination "robbykevlishvili won by resignation"]

1. e4 {[%clk 0:03:01.9]} 1... c5 {[%clk 0:03:00.8]} 2. Nf3 {[%clk 0:03:01.9]}
2... d6 {[%clk 0:03:01.9]} 3. d4 {[%clk 0:03:03.5]} 3... cxd4 {[%clk 0:03:03.8]}
4. Nxd4 {[%clk 0:03:05.3]} 4... Nf6 {[%clk 0:03:05.3]} 5. Nc3 {[%clk 0:03:06.9]}
5... a6 {[%clk 0:03:06.8]} 6. Bc4 {[%clk 0:03:07.6]} 6... e6 {[%clk 0:03:07.5]}
7. Bb3 {[%clk 0:03:08.1]} 7... Nbd7 {[%clk 0:03:06.7]} 8. f4 {[%clk 0:03:08.8]}
8... Nc5 {[%clk 0:03:07.7]} 9. e5 {[%clk 0:03:09.8]} 9... dxe5 {[%clk
0:03:05.3]} 10. fxe5 {[%clk 0:03:11.7]} 10... Nfd7 {[%clk 0:03:05.1]} 11. Be3
{[%clk 0:03:11.4]} 11... Nxe5 {[%clk 0:02:46.5]} 12. Qh5 {[%clk 0:03:10.7]}
12... Qc7 {[%clk 0:02:26.3]} 13. O-O-O {[%clk 0:03:10.1]} 13... Be7 {[%clk
0:02:25.2]} 14. Kb1 {[%clk 0:03:05.6]} 14... Nxb3 {[%clk 0:02:21.6]} 15. axb3
{[%clk 0:03:06.2]} 15... O-O {[%clk 0:02:22.6]} 16. Bf4 {[%clk 0:03:06]} 16...
f6 {[%clk 0:02:20.9]} 17. Rhe1 {[%clk 0:03:06]} 17... b5 {[%clk 0:02:16.3]} 18.
Nf3 {[%clk 0:03:03]} 18... b4 {[%clk 0:02:08]} 19. Ne4 {[%clk 0:02:55.9]} 19...
g6 {[%clk 0:01:53]} 20. Qh3 {[%clk 0:02:40.7]} 20... a5 {[%clk 0:01:49.6]} 21.
Nxf6+ {[%clk 0:02:35.4]} 21... Bxf6 {[%clk 0:01:48.6]} 22. Nxe5 {[%clk
0:02:35.4]} 22... Qa7 {[%clk 0:01:29.4]} 23. Be3 {[%clk 0:02:20]} 23... Qc7
{[%clk 0:01:24.5]} 24. Ng4 {[%clk 0:02:17.3]} 24... Bg7 {[%clk 0:01:24.9]} 25.
Nh6+ {[%clk 0:01:49.2]} 25... Kh8 {[%clk 0:01:25.1]} 26. Rf1 {[%clk 0:01:50.6]}
26... Bb7 {[%clk 0:01:11.6]} 27. Qxe6 {[%clk 0:01:42.5]} 27... Bxg2 {[%clk
0:00:57]} 28. Nf7+ {[%clk 0:01:42.4]} 28... Kg8 {[%clk 0:00:58.3]} 29. Nd8+
{[%clk 0:01:41.3]} 29... Kh8 {[%clk 0:00:54.8]} 30. Rxf8+ {[%clk 0:01:41.4]}
30... Bxf8 {[%clk 0:00:56.7]} 31. Bd4+ {[%clk 0:01:42.5]} 1-0

[Event "*** Titled Tuesday Blitz"]
[Site "Chess.com"]
[Date "2018.05.01"]
[Round "2"]
[White "PowerThinking2650"]
[Black "bangchess21"]
[Result "0-1"]
[WhiteElo "2294"]
[BlackElo "2514"]
[TimeControl "180+2"]
[EndTime "13:18:31 PDT"]
[Termination "bangchess21 won by resignation"]

1. e4 {[%clk 0:03:01.9]} 1... c5 {[%clk 0:03:00.7]} 2. Nf3 {[%clk 0:03:02.3]}
2... g6 {[%clk 0:03:01.7]} 3. d4 {[%clk 0:03:02.1]} 3... cxd4 {[%clk 0:03:02.4]}
4. Nxd4 {[%clk 0:03:03.2]} 4... Nc6 {[%clk 0:03:03.1]} 5. c4 {[%clk 0:03:03.2]}
5... Nf6 {[%clk 0:03:03.5]} 6. Nc3 {[%clk 0:03:03.3]} 6... d6 {[%clk 0:03:04.8]}
7. Be2 {[%clk 0:03:00.8]} 7... Nxd4 {[%clk 0:03:05.7]} 8. Qxd4 {[%clk
0:03:01.4]} 8... Bg7 {[%clk 0:03:07.4]} 9. Be3 {[%clk 0:02:51.8]} 9... O-O
{[%clk 0:03:07.1]} 10. Qd2 {[%clk 0:02:52.2]} 10... a5 {[%clk 0:03:08.2]} 11.
O-O {[%clk 0:02:30]} 11... a4 {[%clk 0:03:08.3]} 12. f4 {[%clk 0:02:26.7]} 12...
Bd7 {[%clk 0:02:49]} 13. Bd4 {[%clk 0:02:10.2]} 13... Bc6 {[%clk 0:02:49.9]} 14.
Bd3 {[%clk 0:02:10.3]} 14... Qa5 {[%clk 0:02:43.4]} 15. Kh1 {[%clk 0:01:48.2]}
15... Rfe8 {[%clk 0:02:28.4]} 16. e5 {[%clk 0:01:45.8]} 16... Nd7 {[%clk
0:02:24.5]} 17. Qf2 {[%clk 0:01:26.4]} 17... dxe5 {[%clk 0:02:10.2]} 18. fxe5
{[%clk 0:01:24.8]} 18... Nxe5 {[%clk 0:02:11.4]} 19. Bxe5 {[%clk 0:01:20.9]}
19... Qxe5 {[%clk 0:02:12]} 20. Qxf7+ {[%clk 0:01:20.2]} 20... Kh8 {[%clk
0:02:13.2]} 21. Rae1 {[%clk 0:01:14.7]} 21... Qd6 {[%clk 0:02:02.7]} 22. Ne4
{[%clk 0:00:52.6]} 22... Qxd3 {[%clk 0:01:39.7]} 23. Ng5 {[%clk 0:00:44.5]}
23... Rf8 {[%clk 0:01:34]} 0-1

[Event "*** Titled Tuesday Blitz"]
[Site "Chess.com"]
[Date "2018.05.01"]
[Round "2"]
[White "sergiochess83"]
[Black "ghost_of_pushwood"]
[Result "1-0"]
[WhiteElo "2794"]
[BlackElo "1776"]
[TimeControl "180+2"]
[EndTime "13:19:02 PDT"]
[Termination "sergiochess83 won by resignation"]

1. e4 {[%clk 0:03:01.9]} 1... e5 {[%clk 0:02:59.8]} 2. Nf3 {[%clk 0:03:02.6]}
2... Nc6 {[%clk 0:03:00]} 3. Bb5 {[%clk 0:03:03.6]} 3... a6 {[%clk 0:02:59.9]}
4. Ba4 {[%clk 0:03:04.2]} 4... d6 {[%clk 0:03:00.3]} 5. c3 {[%clk 0:03:04.9]}
5... Ne7 {[%clk 0:03:00.7]} 6. d4 {[%clk 0:03:05.7]} 6... Bd7 {[%clk 0:03:01.6]}
7. O-O {[%clk 0:03:06.5]} 7... Ng6 {[%clk 0:03:02]} 8. Re1 {[%clk 0:03:04.3]}
8... Be7 {[%clk 0:03:02.3]} 9. Be3 {[%clk 0:03:03.1]} 9... O-O {[%clk 0:03:02]}
10. Nbd2 {[%clk 0:03:04.6]} 10... Bf6 {[%clk 0:02:54.7]} 11. Nf1 {[%clk
0:03:04.9]} 11... Kh8 {[%clk 0:02:44.6]} 12. Ng3 {[%clk 0:03:05.9]} 12... Nce7
{[%clk 0:02:45.2]} 13. Bxd7 {[%clk 0:03:05.7]} 13... Qxd7 {[%clk 0:02:45.2]} 14.
Nh5 {[%clk 0:03:03.2]} 14... Ng8 {[%clk 0:02:45.7]} 15. dxe5 {[%clk 0:02:47.6]}
15... Bxe5 {[%clk 0:02:39]} 16. Nxe5 {[%clk 0:02:44.9]} 16... Nxe5 {[%clk
0:02:39.4]} 17. f4 {[%clk 0:02:46.1]} 17... Ng4 {[%clk 0:02:37.3]} 18. Bd4
{[%clk 0:02:46.7]} 18... N4f6 {[%clk 0:02:28.8]} 19. Nxg7 {[%clk 0:02:25.4]}
19... Kxg7 {[%clk 0:02:22.6]} 20. e5 {[%clk 0:02:26.8]} 20... Qf5 {[%clk
0:02:11.5]} 21. exf6+ {[%clk 0:02:24.1]} 21... Kh8 {[%clk 0:01:47.7]} 22. c4
{[%clk 0:02:09.6]} 22... Rfe8 {[%clk 0:01:26.1]} 23. Qf3 {[%clk 0:02:06.8]}
23... c6 {[%clk 0:01:20.3]} 24. Qg3 {[%clk 0:01:59.3]} 24... Qg6 {[%clk
0:01:17.6]} 25. Qxg6 {[%clk 0:02:00.2]} 25... hxg6 {[%clk 0:01:17.6]} 26. g4
{[%clk 0:02:01.2]} 26... Nh6 {[%clk 0:01:13.7]} 27. h3 {[%clk 0:02:02.5]} 27...
Rg8 {[%clk 0:01:07]} 28. Kf2 {[%clk 0:02:01.8]} 28... Rae8 {[%clk 0:00:56.9]}
29. Rxe8 {[%clk 0:01:59.2]} 29... Rxe8 {[%clk 0:00:56.6]} 30. Re1 {[%clk
0:02:01.1]} 30... Rxe1 {[%clk 0:00:45.9]} 31. Kxe1 {[%clk 0:02:01.9]} 31... Kg8
{[%clk 0:00:46.5]} 32. Kf2 {[%clk 0:01:50.4]} 32... Kf8 {[%clk 0:00:46.4]} 33.
Kg3 {[%clk 0:01:51.6]} 33... Ke8 {[%clk 0:00:32.8]} 34. Kh4 {[%clk 0:01:52.7]}
34... Kd7 {[%clk 0:00:29.7]} 35. Kg5 {[%clk 0:01:53.8]} 35... Ng8 {[%clk
0:00:30.3]} 36. h4 {[%clk 0:01:55]} 1-0

[Event "*** Titled Tuesday Blitz"]
[Site "Chess.com"]
[Date "2018.05.01"]
[Round "2"]
[White "nihalsarin"]
[Black "dhanushbharadwaj"]
[Result "1-0"]
[WhiteElo "2764"]
[BlackElo "2526"]
[TimeControl "180+2"]
[EndTime "13:19:03 PDT"]
[Termination "nihalsarin won by resignation"]

1. e4 {[%clk 0:03:01.9]} 1... c6 {[%clk 0:03:01.2]} 2. d4 {[%clk 0:03:01.3]}
2... d5 {[%clk 0:03:02.3]} 3. exd5 {[%clk 0:03:03.2]} 3... cxd5 {[%clk
0:03:02.8]} 4. Bd3 {[%clk 0:03:04.6]} 4... Nc6 {[%clk 0:03:02.5]} 5. c3 {[%clk
0:03:04.8]} 5... Qc7 {[%clk 0:03:03.7]} 6. Ne2 {[%clk 0:03:05.6]} 6... e5 {[%clk
0:03:00.6]} 7. dxe5 {[%clk 0:03:06.3]} 7... Nxe5 {[%clk 0:03:02.5]} 8. O-O
{[%clk 0:03:03.9]} 8... Nf6 {[%clk 0:03:02.2]} 9. Nd4 {[%clk 0:02:57.1]} 9...
Be7 {[%clk 0:02:52.2]} 10. Bf4 {[%clk 0:02:55.2]} 10... Nfd7 {[%clk 0:02:39.9]}
11. Re1 {[%clk 0:02:52.6]} 11... a6 {[%clk 0:02:26.2]} 12. Qh5 {[%clk
0:02:49.3]} 12... Bf6 {[%clk 0:01:31.9]} 13. Bxe5 {[%clk 0:02:46.9]} 13... Nxe5
{[%clk 0:01:26]} 14. f4 {[%clk 0:02:43.6]} 14... g6 {[%clk 0:01:27.1]} 15. Qe2
{[%clk 0:02:39.8]} 15... O-O {[%clk 0:01:27]} 16. fxe5 {[%clk 0:02:40.9]} 16...
Re8 {[%clk 0:01:28.5]} 17. Nf3 {[%clk 0:02:22.5]} 17... Bg4 {[%clk 0:01:28.5]}
18. Nbd2 {[%clk 0:02:08.6]} 18... Bxe5 {[%clk 0:01:27.6]} 19. Qf2 {[%clk
0:02:09.3]} 19... Bd7 {[%clk 0:01:23.4]} 20. Nxe5 {[%clk 0:02:07.4]} 20... Rxe5
{[%clk 0:01:25.3]} 21. Rxe5 {[%clk 0:02:05.5]} 21... Qxe5 {[%clk 0:01:25]} 22.
Re1 {[%clk 0:02:05.8]} 22... Qd6 {[%clk 0:01:25.9]} 23. Nf3 {[%clk 0:02:07.2]}
23... Re8 {[%clk 0:01:25.3]} 24. Rxe8+ {[%clk 0:02:05.5]} 24... Bxe8 {[%clk
0:01:27.2]} 25. Qe3 {[%clk 0:02:06.9]} 25... Bd7 {[%clk 0:01:27.9]} 26. h3
{[%clk 0:02:05.3]} 26... h5 {[%clk 0:01:28.3]} 27. Kf2 {[%clk 0:02:03]} 27... b5
{[%clk 0:01:26.6]} 28. Qd4 {[%clk 0:02:00.8]} 28... a5 {[%clk 0:01:24.9]} 29.
Ne5 {[%clk 0:01:58.5]} 29... Qf6+ {[%clk 0:01:22.8]} 30. Kg1 {[%clk 0:01:54.7]}
30... Bf5 {[%clk 0:01:23.4]} 31. Bxf5 {[%clk 0:01:52.7]} 31... Qxf5 {[%clk
0:01:25.3]} 32. Qxd5 {[%clk 0:01:53.1]} 32... h4 {[%clk 0:01:19.6]} 33. Qxb5
{[%clk 0:01:43.7]} 33... Qf4 {[%clk 0:01:09]} 34. Qe8+ {[%clk 0:01:41.9]} 34...
Kg7 {[%clk 0:01:09]} 35. Qxf7+ {[%clk 0:01:43.8]} 35... Qxf7 {[%clk 0:01:10.1]}
36. Nxf7 {[%clk 0:01:45.7]} 36... Kxf7 {[%clk 0:01:12]} 37. Kf2 {[%clk
0:01:47.2]} 37... Kf6 {[%clk 0:01:13.5]} 38. a4 {[%clk 0:01:47.7]} 38... Ke5
{[%clk 0:01:13.7]} 39. b4 {[%clk 0:01:49.2]} 39... axb4 {[%clk 0:01:13.9]} 40.
cxb4 {[%clk 0:01:51.1]} 1-0

[Event "*** Titled Tuesday Blitz"]
[Site "Chess.com"]
[Date "2018.05.01"]
[Round "2"]
[White "LawrenceTrent"]
[Black "Er_is_geen_hoop_meer"]
[Result "0-1"]
[WhiteElo "2458"]
[BlackElo "2355"]
[TimeControl "180+2"]
[EndTime "13:19:05 PDT"]
[Termination "Er_is_geen_hoop_meer won by resignation"]

1. e4 {[%clk 0:03:01.9]} 1... c5 {[%clk 0:02:59.2]} 2. Nf3 {[%clk 0:03:02.4]}
2... e6 {[%clk 0:03:00.2]} 3. d4 {[%clk 0:03:03.2]} 3... cxd4 {[%clk 0:03:02.1]}
4. Nxd4 {[%clk 0:03:05]} 4... Nc6 {[%clk 0:03:03.7]} 5. Nc3 {[%clk 0:03:06.3]}
5... Qc7 {[%clk 0:03:05.2]} 6. Be3 {[%clk 0:03:07.1]} 6... a6 {[%clk 0:03:05.9]}
7. a3 {[%clk 0:03:06.9]} 7... Nf6 {[%clk 0:03:05.3]} 8. f4 {[%clk 0:03:07.7]}
8... d6 {[%clk 0:03:03]} 9. Qf3 {[%clk 0:03:08.2]} 9... Bd7 {[%clk 0:03:00.1]}
10. O-O-O {[%clk 0:03:07.9]} 10... h5 {[%clk 0:03:00.8]} 11. g3 {[%clk 0:03:00]}
11... b5 {[%clk 0:02:59.5]} 12. Bg2 {[%clk 0:02:50]} 12... Rb8 {[%clk
0:03:00.8]} 13. Nxc6 {[%clk 0:02:34.4]} 13... Bxc6 {[%clk 0:03:02.7]} 14. Rhe1
{[%clk 0:02:34.7]} 14... b4 {[%clk 0:03:01.6]} 15. axb4 {[%clk 0:02:29.6]} 15...
Rxb4 {[%clk 0:03:03.5]} 16. Rd4 {[%clk 0:02:20.7]} 16... Rxd4 {[%clk 0:03:00]}
17. Bxd4 {[%clk 0:02:21.1]} 17... Be7 {[%clk 0:02:58.6]} 18. Kb1 {[%clk
0:02:07.1]} 18... Qb7 {[%clk 0:02:59.7]} 19. Qd1 {[%clk 0:01:54.7]} 19... a5
{[%clk 0:02:57.9]} 20. h3 {[%clk 0:01:35.2]} 20... a4 {[%clk 0:02:58]} 21. Ka1
{[%clk 0:01:33.7]} 21... a3 {[%clk 0:02:57.7]} 22. b3 {[%clk 0:01:34.1]} 22...
Qb4 {[%clk 0:02:57.4]} 23. Na2 {[%clk 0:01:27.4]} 23... Qb7 {[%clk 0:02:58.2]}
24. Qd3 {[%clk 0:01:21.4]} 24... Nd7 {[%clk 0:02:52.8]} 25. Bf3 {[%clk
0:01:12.6]} 25... e5 {[%clk 0:02:49.1]} 26. Bf2 {[%clk 0:01:11.4]} 26... h4
{[%clk 0:02:48.9]} 27. Bg4 {[%clk 0:00:55.8]} 27... hxg3 {[%clk 0:02:49.1]} 28.
Bxg3 {[%clk 0:00:56.6]} 28... Nc5 {[%clk 0:02:49]} 29. Qc4 {[%clk 0:00:51.4]}
29... Bxe4 {[%clk 0:02:40]} 30. fxe5 {[%clk 0:00:51.8]} 30... O-O {[%clk
0:02:39.6]} 31. Nc3 {[%clk 0:00:46.1]} 31... Bxc2 {[%clk 0:02:39.8]} 32. b4
{[%clk 0:00:38.2]} 32... Nb3+ {[%clk 0:02:39]} 33. Ka2 {[%clk 0:00:38.6]} 33...
Nd2 {[%clk 0:02:40.6]} 34. Qb5 {[%clk 0:00:32.3]} 34... Qg2 {[%clk 0:02:37.8]}
35. Qe2 {[%clk 0:00:21.7]} 35... Bb3+ {[%clk 0:02:38.1]} 36. Ka1 {[%clk
0:00:22.4]} 36... Qxg3 {[%clk 0:02:31.4]} 37. Qxd2 {[%clk 0:00:23.6]} 37... dxe5
{[%clk 0:02:32.3]} 38. Ne4 {[%clk 0:00:23.2]} 38... Qf4 {[%clk 0:02:25]} 39.
Qxf4 {[%clk 0:00:23.2]} 39... exf4 {[%clk 0:02:26.9]} 40. Nc5 {[%clk 0:00:23.1]}
40... Bf6+ {[%clk 0:02:24.8]} 0-1

[Event "*** Titled Tuesday Blitz"]
[Site "Chess.com"]
[Date "2018.05.01"]
[Round "2"]
[White "goingin33"]
[Black "JozefKneht"]
[Result "0-1"]
[WhiteElo "2211"]
[BlackElo "2379"]
[TimeControl "180+2"]
[EndTime "13:19:13 PDT"]
[Termination "JozefKneht won by resignation"]

1. e4 {[%clk 0:03:01.9]} 1... e5 {[%clk 0:02:59.5]} 2. Nf3 {[%clk 0:03:02.7]}
2... Nc6 {[%clk 0:03:00.4]} 3. Nc3 {[%clk 0:03:04.1]} 3... Nf6 {[%clk
0:03:00.6]} 4. Bb5 {[%clk 0:03:04.9]} 4... Bb4 {[%clk 0:03:01.3]} 5. O-O {[%clk
0:03:04.9]} 5... O-O {[%clk 0:03:02.7]} 6. d3 {[%clk 0:03:04.6]} 6... d6 {[%clk
0:03:03.9]} 7. Bxc6 {[%clk 0:03:04.8]} 7... bxc6 {[%clk 0:03:03.7]} 8. Ne2
{[%clk 0:03:05.2]} 8... Bc5 {[%clk 0:02:57.2]} 9. Ng3 {[%clk 0:03:05.7]} 9... h6
{[%clk 0:02:50.1]} 10. h3 {[%clk 0:03:05.7]} 10... Bb6 {[%clk 0:02:51.4]} 11.
Nh2 {[%clk 0:03:05.9]} 11... d5 {[%clk 0:02:50.4]} 12. Qf3 {[%clk 0:03:06]}
12... Qd6 {[%clk 0:02:48.7]} 13. Nf5 {[%clk 0:03:01.5]} 13... Bxf5 {[%clk
0:02:48.8]} 14. Qxf5 {[%clk 0:03:02.6]} 14... Qe6 {[%clk 0:02:49.5]} 15. Qf3
{[%clk 0:02:59.1]} 15... dxe4 {[%clk 0:02:46.5]} 16. dxe4 {[%clk 0:02:59.8]}
16... Rfd8 {[%clk 0:02:47.9]} 17. a4 {[%clk 0:02:48.5]} 17... a6 {[%clk
0:02:45.4]} 18. Ra3 {[%clk 0:02:48.2]} 18... Rd4 {[%clk 0:02:45]} 19. Re1 {[%clk
0:02:22]} 19... Rad8 {[%clk 0:02:44.3]} 20. Ng4 {[%clk 0:02:15.7]} 20... Nxg4
{[%clk 0:02:44.1]} 21. hxg4 {[%clk 0:02:17.6]} 21... f6 {[%clk 0:02:44.2]} 22.
Be3 {[%clk 0:02:12.5]} 22... R4d7 {[%clk 0:02:42.7]} 23. Bxb6 {[%clk 0:02:13.4]}
23... cxb6 {[%clk 0:02:43.2]} 24. Rb3 {[%clk 0:02:14.6]} 24... b5 {[%clk
0:02:43.9]} 25. axb5 {[%clk 0:02:16.5]} 25... axb5 {[%clk 0:02:44.4]} 26. Qf5
{[%clk 0:02:13]} 26... Kf7 {[%clk 0:02:44]} 27. Rc3 {[%clk 0:02:13.3]} 27... Rd6
{[%clk 0:02:43.8]} 28. Ra1 {[%clk 0:02:11.6]} 28... R8d7 {[%clk 0:02:33.8]} 29.
Ra8 {[%clk 0:02:05.2]} 29... g6 {[%clk 0:02:27.4]} 30. Qxe6+ {[%clk 0:02:05.4]}
30... Rxe6 {[%clk 0:02:26]} 31. Rc8 {[%clk 0:02:05.9]} 31... Rd4 {[%clk
0:02:22.3]} 32. f3 {[%clk 0:02:04.9]} 32... Rc4 {[%clk 0:02:23]} 33. Rxc4 {[%clk
0:02:04.9]} 33... bxc4 {[%clk 0:02:23.2]} 34. Kf2 {[%clk 0:02:06]} 34... g5
{[%clk 0:02:22.5]} 35. Ra8 {[%clk 0:01:54.2]} 35... Ke7 {[%clk 0:02:23.6]} 36.
Ra4 {[%clk 0:01:54.3]} 36... Rd6 {[%clk 0:02:21.4]} 37. Rxc4 {[%clk 0:01:55]}
37... Kd7 {[%clk 0:02:22.2]} 38. Ke2 {[%clk 0:01:56.1]} 38... Kc7 {[%clk
0:02:23.4]} 39. Ra4 {[%clk 0:01:55]} 39... Kb6 {[%clk 0:02:23.6]} 40. Ra8 {[%clk
0:01:55.9]} 40... Kc5 {[%clk 0:02:23.3]} 41. Rh8 {[%clk 0:01:56.7]} 41... Kc4
{[%clk 0:02:24.1]} 42. Rxh6 {[%clk 0:01:57.3]} 42... c5 {[%clk 0:02:25.5]} 43.
Rh8 {[%clk 0:01:57.3]} 43... Rb6 {[%clk 0:02:26.5]} 44. Rf8 {[%clk 0:01:38.4]}
44... Rxb2 {[%clk 0:02:26.4]} 45. Kd2 {[%clk 0:01:39.8]} 45... Rb6 {[%clk
0:02:26.9]} 46. g3 {[%clk 0:01:40.7]} 46... Rd6+ {[%clk 0:02:27.5]} 47. Kc1
{[%clk 0:01:38.9]} 47... Kc3 {[%clk 0:02:28.6]} 48. Ra8 {[%clk 0:01:36.5]} 48...
c4 {[%clk 0:02:27.8]} 49. Ra3+ {[%clk 0:01:36.2]} 49... Kd4 {[%clk 0:02:27.9]}
50. Kd2 {[%clk 0:01:35.3]} 50... Rb6 {[%clk 0:02:29.2]} 51. c3+ {[%clk
0:01:33.7]} 51... Kc5 {[%clk 0:02:30]} 52. Ra5+ {[%clk 0:01:34.5]} 52... Rb5
{[%clk 0:02:28.2]} 53. Rxb5+ {[%clk 0:01:32.4]} 53... Kxb5 {[%clk 0:02:29.2]}
54. Ke3 {[%clk 0:01:33.9]} 54... Ka4 {[%clk 0:02:29.7]} 55. f4 {[%clk
0:01:35.2]} 55... Kb3 {[%clk 0:02:30.3]} 56. Kd2 {[%clk 0:01:31.5]} 56... Kb2
{[%clk 0:02:30.7]} 57. Kd1 {[%clk 0:01:16.2]} 57... Kxc3 {[%clk 0:02:30.4]} 58.
Ke2 {[%clk 0:01:18.1]} 58... Kd4 {[%clk 0:02:30.5]} 59. fxg5 {[%clk 0:01:20]}
59... fxg5 {[%clk 0:02:30.1]} 0-1

[Event "*** Titled Tuesday Blitz"]
[Site "Chess.com"]
[Date "2018.05.01"]
[Round "2"]
[White "JSPrepz"]
[Black "Khamrakulov_Djurabek"]
[Result "0-1"]
[WhiteElo "2623"]
[BlackElo "2642"]
[TimeControl "180+2"]
[EndTime "13:19:33 PDT"]
[Termination "Khamrakulov_Djurabek won by checkmate"]

1. e4 {[%clk 0:03:01.7]} 1... c6 {[%clk 0:03:00.9]} 2. d4 {[%clk 0:03:02.8]}
2... d5 {[%clk 0:03:02.3]} 3. Nc3 {[%clk 0:03:04.3]} 3... dxe4 {[%clk
0:03:03.2]} 4. Nxe4 {[%clk 0:03:05.5]} 4... Bf5 {[%clk 0:03:04.8]} 5. Ng3 {[%clk
0:03:06.6]} 5... Bg6 {[%clk 0:03:06.1]} 6. h4 {[%clk 0:03:07.8]} 6... h6 {[%clk
0:03:07.2]} 7. Nh3 {[%clk 0:03:09.1]} 7... e6 {[%clk 0:03:03.8]} 8. Nf4 {[%clk
0:03:10.1]} 8... Bh7 {[%clk 0:03:04.9]} 9. Bc4 {[%clk 0:03:11]} 9... Nf6 {[%clk
0:03:00.5]} 10. O-O {[%clk 0:03:10.4]} 10... Nd5 {[%clk 0:02:58.8]} 11. Re1
{[%clk 0:02:20.7]} 11... Nxf4 {[%clk 0:02:54.9]} 12. Bxf4 {[%clk 0:02:21.2]}
12... Qxh4 {[%clk 0:02:55.7]} 13. Be5 {[%clk 0:02:12.2]} 13... Nd7 {[%clk
0:02:54.3]} 14. Qe2 {[%clk 0:01:51.7]} 14... O-O-O {[%clk 0:02:43]} 15. Qf3
{[%clk 0:01:40.6]} 15... Nxe5 {[%clk 0:02:42]} 16. Rxe5 {[%clk 0:01:35.5]} 16...
Qxd4 {[%clk 0:02:42]} 17. Qe2 {[%clk 0:00:47.5]} 17... Bd6 {[%clk 0:02:26.7]}
18. Re3 {[%clk 0:00:48.5]} 18... Bf4 {[%clk 0:02:27.6]} 19. Ra3 {[%clk
0:00:46.4]} 19... Bd6 {[%clk 0:02:12.4]} 20. Rf3 {[%clk 0:00:40.6]} 20... Bxg3
{[%clk 0:02:06.7]} 21. Rxg3 {[%clk 0:00:41.5]} 21... g5 {[%clk 0:02:07.7]} 22.
c3 {[%clk 0:00:35.7]} 22... Qd2 {[%clk 0:02:04.8]} 23. Qe5 {[%clk 0:00:34.3]}
23... Qd6 {[%clk 0:01:58.9]} 24. Qa5 {[%clk 0:00:34.2]} 24... Kb8 {[%clk
0:01:55.3]} 25. Re1 {[%clk 0:00:33.4]} 25... Qc7 {[%clk 0:01:55.5]} 26. Qb4
{[%clk 0:00:31.5]} 26... Rd2 {[%clk 0:01:54.5]} 27. Rf3 {[%clk 0:00:30.1]} 27...
Rhd8 {[%clk 0:01:48.8]} 28. Bb3 {[%clk 0:00:27.4]} 28... Bf5 {[%clk 0:01:45]}
29. a4 {[%clk 0:00:21.1]} 29... g4 {[%clk 0:01:45.8]} 30. Rfe3 {[%clk
0:00:21.8]} 30... h5 {[%clk 0:01:46.4]} 31. a5 {[%clk 0:00:22.3]} 31... h4
{[%clk 0:01:46.6]} 32. a6 {[%clk 0:00:23.7]} 32... b6 {[%clk 0:01:47.8]} 33. Qc4
{[%clk 0:00:13.4]} 33... h3 {[%clk 0:01:47.9]} 34. gxh3 {[%clk 0:00:12.3]} 34...
gxh3 {[%clk 0:01:48.6]} 35. Qh4 {[%clk 0:00:14.2]} 35... Rg8+ {[%clk 0:01:47.7]}
36. Kh1 {[%clk 0:00:14.9]} 36... Rg2 {[%clk 0:01:43.3]} 37. Qh8+ {[%clk
0:00:16]} 37... Rd8 {[%clk 0:01:44.2]} 38. Qh4 {[%clk 0:00:16.6]} 38... Qh2#
{[%clk 0:01:44.6]} 0-1